fUSD/lending_fUSD_20250313
["ID","MTS","AMOUNT","RATE_DAILY","PERIOD"]
[356071868,1741879871751,-546.35,0.00028428,18]
[356071869,1741879871760,-2269.93,0.00028428,18]
[356071870,1741879871770,-726.2,0.00028428,18]
[356071871,1741879871780,-500.0,0.00028428,18]
[356071872,1741879871789,-500.0,0.00028428,18]
[356071873,1741879871799,-2116.36,0.00028428,18]
[356071874,1741879871809,-813.19,0.00028428,18]
[356071875,1741879871818,-325.55,0.00028428,18]
[356071876,1741879871828,-500.0,0.00028428,18]
[356071877,1741879871837,-631.49,0.00028428,18]
[356071878,1741879871847,-500.0,0.00028428,18]
[356071879,1741879871861,-300.0,0.00028428,18]
[356071880,1741879871870,-500.0,0.00028428,18]
[356071881,1741879871879,-500.0,0.00028428,18]
[356071882,1741879871889,-1020.01,0.00028428,18]
[356071883,1741879871898,-500.0,0.00028428,18]
[356071884,1741879871909,-1317.74,0.00028428,18]
[356071885,1741879871919,-500.0,0.00028428,18]
[356071886,1741879871929,-1259.12,0.00028428,18]
[356071887,1741879871939,-500.0,0.00028428,18]
[356071888,1741879871949,-525.64,0.00028428,18]
[356071889,1741879871959,-500.0,0.00028428,18]
[356071890,1741879871969,-500.0,0.00028428,18]
[356071891,1741879871978,-575.29,0.00028428,18]
[356071892,1741879871988,-500.0,0.00028428,18]
[356071893,1741879871997,-500.0,0.00028428,18]
[356071894,1741879872007,-1176.05,0.00028428,18]
[356071895,1741879872017,-986.57,0.00028428,18]
[356071896,1741879872027,-500.0,0.00028428,18]
[356071897,1741879872037,-500.0,0.00028428,18]
[356071898,1741879872046,-500.0,0.00028428,18]
[356071899,1741879872056,-500.0,0.00028428,18]
[356071900,1741879872065,-500.0,0.00028428,18]
[356071901,1741879872075,-500.0,0.00028428,18]
[356071902,1741879872084,-500.0,0.00028428,18]
[356071903,1741879872093,-553.93,0.00028428,18]
[356071904,1741879872103,-500.0,0.00028428,18]
[356071905,1741879872112,-500.0,0.00028429,18]
[356071906,1741879872123,-500.0,0.00028429,18]
[356071907,1741879872133,-500.0,0.00028429,18]
[356071908,1741879872145,-500.0,0.00028429,18]
[356071909,1741879872156,-500.0,0.00028429,18]
[356071910,1741879872165,-500.0,0.00028429,18]
[356071911,1741879872175,-712.27,0.00028429,18]
[356071912,1741879872184,-500.0,0.00028429,18]
[356071913,1741879872194,-500.0,0.00028429,18]
[356071914,1741879872204,-714.74,0.00028429,18]
[356071915,1741879872215,-759.18,0.00028429,18]
[356071916,1741879872226,-500.0,0.00028429,18]
[356071917,1741879872236,-748.06,0.00028429,18]
[356071918,1741879872246,-579.28,0.00028429,18]
[356071919,1741879872255,-891.43,0.00028429,18]
[356071920,1741879872265,-880.59,0.00028429,18]
[356071921,1741879872274,-447.69963166,0.00028429,18]
[356071922,1741879872284,-500.0,0.00028429,18]
[356071923,1741879872294,-500.0,0.00028429,18]
[356071924,1741879872303,-628.58,0.00028429,18]
[356071925,1741879872313,-1312.93,0.00028429,18]
[356071926,1741879872323,-621.19,0.00028429,18]
[356071927,1741879872333,-1678.73,0.00028429,18]
[356071928,1741879872342,-500.0,0.00028429,18]
[356071929,1741879872352,-1079.24,0.00028429,18]
[356071930,1741879872361,-500.0,0.00028429,18]
[356071931,1741879872371,-389.62621539,0.00028429,18]
[356071932,1741879872381,-746.53,0.00028429,18]
[356071933,1741879872392,-2380.9,0.00028429,18]
[356071934,1741879872402,-535.93558281,0.00028429,18]
[356071935,1741879872412,-561.65,0.00028429,18]
[356071936,1741879872422,-541.68,0.00028429,18]
[356071937,1741879872432,-500.0,0.00028429,18]
[356071938,1741879872442,-526.5,0.00028429,18]
[356071939,1741879872452,-500.0,0.00028429,18]
[356071940,1741879872462,-527.19,0.00028429,18]
[356071941,1741879872472,-500.0,0.00028429,18]
[356071942,1741879872483,-2394.11,0.00028429,18]
[356071943,1741879872493,-500.0,0.00028429,18]
[356071944,1741879872503,-500.0,0.00028429,18]
[356071945,1741879872513,-720.22,0.00028429,18]
[356071946,1741879872523,-577.43,0.00028429,18]
[356071947,1741879872533,-1052.06,0.00028429,18]
[356071948,1741879872543,-500.0,0.00028429,18]
[356071949,1741879872552,-500.0,0.00028429,18]
[356071950,1741879872563,-531.76,0.00028429,18]
[356071951,1741879872575,-100000.0,0.0002843,10]
[356071952,1741879872586,-500.0,0.0002843,18]
[356071953,1741879872596,-500.0,0.0002843,18]
[356071954,1741879872606,-500.0,0.0002843,18]
[356071955,1741879872617,-500.0,0.0002843,18]
[356071956,1741879872627,-500.0,0.0002843,18]
[356071957,1741879872637,-219.29310165,0.0002843,18]
[356071958,1741879872647,-457.59894938,0.0002843,18]
[356071959,1741879872659,-500.0,0.0002843,18]
[356071960,1741879872668,-500.0,0.0002843,18]
[356071961,1741879872678,-500.0,0.0002843,18]
[356071962,1741879872688,-543.37363273,0.0002843,18]
[356071963,1741879872698,-500.0,0.0002843,18]
[356071964,1741879872707,-500.0,0.0002843,18]
[356071965,1741879872717,-500.0,0.0002843,18]
[356071966,1741879872727,-500.0,0.0002843,18]
[356071967,1741879872736,-500.0,0.0002843,18]
[356071968,1741879872746,-500.0,0.0002843,18]
[356071969,1741879872756,-500.0,0.0002843,18]
[356071970,1741879872766,-500.0,0.0002843,18]
[356071971,1741879872776,-500.0,0.0002843,18]
[356071972,1741879872786,-500.0,0.0002843,18]
[356071973,1741879872795,-500.0,0.0002843,18]
[356071974,1741879872806,-500.0,0.0002843,18]
[356071975,1741879872815,-500.0,0.0002843,18]
[356071976,1741879872825,-500.0,0.0002843,18]
[356071977,1741879872835,-500.0,0.0002843,18]
[356071978,1741879872844,-500.0,0.0002843,18]
[356071979,1741879872854,-500.0,0.0002843,18]
[356071980,1741879872865,-578.64865017,0.0002843,18]
[356071981,1741879872875,-500.0,0.0002843,18]
[356071982,1741879872885,-500.0,0.0002843,18]
[356071983,1741879872895,-500.0,0.0002843,18]
[356071984,1741879872906,-500.0,0.0002843,18]
[356071985,1741879872916,-500.0,0.0002843,18]
[356071986,1741879872926,-500.0,0.0002843,18]
[356071987,1741879872936,-500.0,0.0002843,18]
[356071988,1741879872947,-500.0,0.0002843,18]
[356071989,1741879872957,-626.65,0.0002843,18]
[356071990,1741879872967,-500.0,0.0002843,18]
[356071991,1741879872977,-629.74,0.0002843,18]
[356071992,1741879872986,-500.0,0.0002843,18]
[356071993,1741879872996,-500.0,0.0002843,18]
[356071994,1741879873006,-500.0,0.0002843,18]
[356071995,1741879873015,-570.61,0.0002843,18]
[356071996,1741879873025,-500.0,0.0002843,18]
[356071997,1741879873035,-500.0,0.0002843,18]
[356071998,1741879873044,-500.0,0.0002843,18]
[356071999,1741879873054,-500.0,0.0002843,18]
[356072000,1741879873063,-500.0,0.0002843,18]
[356072001,1741879873073,-889.24,0.0002843,18]
[356072002,1741879873083,-500.0,0.0002843,18]
[356072003,1741879873093,-500.0,0.0002843,18]
[356072004,1741879873102,-461.63860036,0.0002843,18]
[356072005,1741879873111,-567.88876253,0.0002843,18]
[356072006,1741879873124,-501.01,0.0002843,18]
[356072007,1741879873134,-500.0,0.0002843,18]
[356072008,1741879873145,-500.0,0.0002843,18]
[356072009,1741879873155,-500.0,0.0002843,18]
[356072010,1741879873165,-660.49,0.0002843,18]
[356072011,1741879873175,-500.0,0.0002843,18]
[356072012,1741879873185,-500.0,0.0002843,18]
[356072013,1741879873195,-500.0,0.0002843,18]
[356072014,1741879873204,-500.0,0.0002843,18]
[356072015,1741879873214,-500.0,0.0002843,18]
[356072016,1741879873224,-302.44351864,0.0002843,18]
[356072017,1741879873234,-1462.67,0.0002843,18]
[356072018,1741879873244,-551.5,0.0002843,18]
[356072019,1741879873254,-500.0,0.0002843,18]
[356072020,1741879873264,-500.0,0.0002843,18]
[356072021,1741879873275,-542.4,0.0002843,18]
[356072022,1741879873285,-467.02300426,0.0002843,18]
[356072023,1741879873294,-500.0,0.0002843,18]
[356072024,1741879873305,-1228.1,0.0002843,7]
[356072025,1741879873314,-646.73,0.0002843,18]
[356072026,1741879873324,-474.62032095,0.0002843,18]
[356072027,1741879873334,-500.0,0.0002843,18]
[356072028,1741879873344,-500.0,0.0002843,18]
[356072029,1741879873354,-500.0,0.0002843,18]
[356072030,1741879873365,-500.0,0.0002843,18]
[356072031,1741879873376,-500.0,0.0002843,18]
[356072032,1741879873386,-886.81,0.0002843,18]
[356072033,1741879873396,-453.23393566,0.0002843,18]
[356072034,1741879873406,-500.0,0.0002843,18]
[356072035,1741879873416,-879.46,0.0002843,18]
[356072036,1741879873426,-613.35323657,0.0002843,18]
[356072037,1741879873436,-979.69,0.0002843,18]
[356072038,1741879873446,-1056.76,0.0002843,18]
[356072039,1741879873456,-698.51,0.0002843,18]
[356072040,1741879873466,-500.0,0.0002843,18]
[356072041,1741879873476,-1607.78,0.0002843,18]
[356072042,1741879873487,-1371.12,0.0002843,18]
[356072043,1741879873496,-507.52,0.0002843,18]
[356072044,1741879873506,-500.0,0.0002843,18]
[356072045,1741879873517,-546.35,0.0002843,18]
[356072046,1741879873527,-2269.93,0.0002843,18]
[356072047,1741879873538,-726.2,0.0002843,18]
[356072048,1741879873548,-500.0,0.0002843,18]
[356072049,1741879873557,-500.0,0.0002843,18]
[356072050,1741879873569,-2116.36,0.0002843,18]
[356072051,1741879873582,-813.19,0.0002843,18]
[356072052,1741879873592,-500.0,0.0002843,18]
[356072053,1741879873602,-631.49,0.0002843,18]
[356072054,1741879873613,-500.0,0.0002843,18]
[356072055,1741879873624,-300.0,0.0002843,18]
[356072056,1741879873634,-500.0,0.0002843,18]
[356072057,1741879873645,-500.0,0.0002843,18]
[356072058,1741879873656,-1020.01,0.0002843,18]
[356072059,1741879873668,-211.92756488,0.0002843,18]
[356072060,1741879873679,-1317.74,0.0002843,18]
[356072061,1741879873689,-500.0,0.0002843,18]
[356072062,1741879873699,-1259.12,0.0002843,18]
[356072063,1741879873709,-500.0,0.0002843,18]
[356072064,1741879873719,-525.64,0.0002843,18]
[356072065,1741879873730,-500.0,0.0002843,18]
[356072066,1741879873741,-500.0,0.0002843,18]
[356072067,1741879873751,-575.29,0.0002843,18]
[356072068,1741879873762,-500.0,0.0002843,18]
[356072069,1741879873772,-500.0,0.0002843,18]
[356072070,1741879873783,-1176.05,0.0002843,18]
[356072071,1741879873793,-986.57,0.0002843,18]
[356072072,1741879873804,-500.0,0.0002843,18]
[356072073,1741879873814,-414.55060653,0.0002843,18]
[356072074,1741879873825,-500.0,0.0002843,18]
[356072075,1741879873837,-500.0,0.0002843,18]
[356072076,1741879873848,-500.0,0.0002843,18]
[356072077,1741879873858,-500.0,0.0002843,18]
[356072078,1741879873870,-179.98413288,0.0002843,18]
[356072079,1741879873881,-553.93,0.0002843,18]
[356072080,1741879873891,-500.0,0.0002843,18]
[356072081,1741879873902,-759.18,0.00028431,18]
[356072082,1741879873912,-500.0,0.00028431,18]
[356072083,1741879873922,-891.43,0.00028431,18]
[356072084,1741879873932,-880.59,0.00028431,18]
[356072085,1741879873942,-628.58,0.00028431,18]
[356072086,1741879873952,-1312.93,0.00028431,18]
[356072087,1741879873963,-621.19,0.00028431,18]
[356072088,1741879873973,-1678.73,0.00028431,18]
[356072089,1741879873983,-1079.24,0.00028431,18]
[356072090,1741879873994,-746.53,0.00028431,18]
[356072091,1741879874005,-561.65,0.00028431,18]
[356072092,1741879874015,-526.5,0.00028431,18]
[356072093,1741879874026,-527.19,0.00028431,18]
[356072094,1741879874037,-2394.11,0.00028431,18]
[356072095,1741879874047,-269.49954391,0.00028431,18]
[356072096,1741879874056,-577.43,0.00028431,18]
[356072097,1741879874066,-1052.06,0.00028431,18]
[356072098,1741879874077,-500.0,0.00028432,18]
[356072099,1741879874087,-500.0,0.00028432,18]
[356072100,1741879874097,-161.58231085,0.00028432,18]
[356072101,1741879874108,-500.0,0.00028432,18]
[356072102,1741879874119,-500.0,0.00028432,18]
[356072103,1741879874129,-500.0,0.00028432,18]
[356072104,1741879874139,-500.0,0.00028432,18]
[356072105,1741879874149,-500.0,0.00028432,18]
[356072106,1741879874159,-500.0,0.00028432,18]
[356072107,1741879874169,-500.0,0.00028432,18]
[356072108,1741879874179,-500.0,0.00028432,18]
[356072109,1741879874189,-500.0,0.00028432,18]
[356072110,1741879874199,-500.0,0.00028432,18]
[356072111,1741879874209,-500.0,0.00028432,18]
[356072112,1741879874219,-500.0,0.00028432,18]
[356072113,1741879874228,-500.0,0.00028432,18]
[356072114,1741879874238,-500.0,0.00028432,18]
[356072115,1741879874248,-500.0,0.00028432,18]
[356072116,1741879874259,-500.0,0.00028432,18]
[356072117,1741879874270,-500.0,0.00028432,18]
[356072118,1741879874280,-500.0,0.00028432,18]
[356072119,1741879874291,-500.0,0.00028432,18]
[356072120,1741879874302,-500.0,0.00028432,18]
[356072121,1741879874312,-500.0,0.00028432,18]
[356072122,1741879874322,-500.0,0.00028432,18]
[356072123,1741879874333,-500.0,0.00028432,18]
[356072124,1741879874343,-500.0,0.00028432,18]
[356072125,1741879874352,-500.0,0.00028432,18]
[356072126,1741879874365,-626.65,0.00028432,18]
[356072127,1741879874375,-629.74,0.00028432,18]
[356072128,1741879874386,-339.51710189,0.00028432,18]
[356072129,1741879874397,-500.0,0.00028432,18]
[356072130,1741879874623,-500.0,0.00028432,18]
[356072131,1741879874634,-500.0,0.00028432,18]
[356072132,1741879874644,-570.61,0.00028432,18]
[356072133,1741879874656,-500.0,0.00028432,18]
[356072134,1741879874666,-500.0,0.00028432,18]
[356072135,1741879874677,-500.0,0.00028432,18]
[356072136,1741879874687,-500.0,0.00028432,18]
[356072137,1741879874697,-889.24,0.00028432,18]
[356072138,1741879874707,-500.0,0.00028432,18]
[356072139,1741879874717,-501.01,0.00028432,18]
[356072140,1741879874727,-500.0,0.00028432,18]
[356072141,1741879874737,-500.0,0.00028432,18]
[356072142,1741879874748,-500.0,0.00028432,18]
[356072143,1741879874758,-660.49,0.00028432,18]
[356072144,1741879874768,-500.0,0.00028432,18]
[356072145,1741879874779,-500.0,0.00028432,18]
[356072146,1741879874789,-500.0,0.00028432,18]
[356072147,1741879874799,-500.0,0.00028432,18]
[356072148,1741879874810,-500.0,0.00028432,18]
[356072149,1741879874819,-500.0,0.00028432,18]
[356072150,1741879874830,-1462.67,0.00028432,18]
[356072151,1741879874840,-551.5,0.00028432,18]
[356072152,1741879874850,-500.0,0.00028432,18]
[356072153,1741879874861,-542.4,0.00028432,18]
[356072154,1741879874875,-500.0,0.00028432,18]
[356072155,1741879874885,-500.0,0.00028432,18]
[356072156,1741879874896,-500.0,0.00028432,18]
[356072157,1741879874906,-1228.1,0.00028432,7]
[356072158,1741879874916,-646.73,0.00028432,18]
[356072159,1741879874926,-500.0,0.00028432,18]
[356072160,1741879874936,-712.27,0.00028432,18]
[356072161,1741879874947,-500.0,0.00028432,18]
[356072162,1741879874958,-500.0,0.00028432,18]
[356072163,1741879874968,-500.0,0.00028432,18]
[356072164,1741879874978,-886.81,0.00028432,18]
[356072165,1741879874988,-879.46,0.00028432,18]
[356072166,1741879874998,-1056.76,0.00028432,18]
[356072167,1741879875008,-714.74,0.00028432,18]
[356072168,1741879875018,-698.51,0.00028432,18]
[356072169,1741879875028,-1607.78,0.00028432,18]
[356072170,1741879875038,-507.52,0.00028432,18]
[356072171,1741879875048,-579.28,0.00028432,18]
[356072172,1741879875059,-726.2,0.00028432,18]
[356072173,1741879875069,-500.0,0.00028432,18]
[356072174,1741879875079,-500.0,0.00028432,18]
[356072175,1741879875090,-2116.36,0.00028432,18]
[356072176,1741879875101,-267.4671017,0.00028432,18]
[356072177,1741879875111,-500.0,0.00028432,18]
[356072178,1741879875124,-631.49,0.00028432,18]
[356072179,1741879875134,-2380.9,0.00028432,18]
[356072180,1741879875146,-1020.01,0.00028432,18]
[356072181,1741879875157,-500.0,0.00028432,18]
[356072182,1741879875168,-1317.74,0.00028432,18]
[356072183,1741879875179,-500.0,0.00028432,18]
[356072184,1741879875189,-1259.12,0.00028432,18]
[356072185,1741879875200,-525.64,0.00028432,18]
[356072186,1741879875212,-405.85385208,0.00028432,18]
[356072187,1741879875223,-500.0,0.00028432,18]
[356072188,1741879875234,-575.29,0.00028432,18]
[356072189,1741879875244,-1176.05,0.00028432,18]
[356072190,1741879875254,-500.0,0.00028432,18]
[356072191,1741879875265,-500.0,0.00028432,18]
[356072192,1741879875275,-500.0,0.00028432,18]
[356072193,1741879875286,-553.93,0.00028432,18]
[356072194,1741879875296,-500.0,0.00028433,18]
[356072195,1741879875307,-500.0,0.00028433,18]
[356072196,1741879875317,-500.0,0.00028433,18]
[356072197,1741879875327,-500.0,0.00028433,18]
[356072198,1741879875337,-500.0,0.00028433,18]
[356072199,1741879875349,-220.10567051,0.00028433,18]
[356072200,1741879875361,-500.0,0.00028433,18]
[356072201,1741879875376,-589.24353,0.00028433,18]
[356072202,1741879875387,-500.0,0.00028433,18]
[356072203,1741879875397,-500.0,0.00028433,18]
[356072204,1741879875407,-500.0,0.00028433,18]
[356072205,1741879875418,-500.0,0.00028433,18]
[356072206,1741879875428,-500.0,0.00028433,18]
[356072207,1741879875439,-440.74928823,0.00028433,18]
[356072208,1741879875449,-500.0,0.00028433,18]
[356072209,1741879875460,-979.69,0.00028433,18]
[356072210,1741879875471,-500.0,0.00028433,18]
[356072211,1741879875481,-1371.12,0.00028433,18]
[356072212,1741879875491,-500.0,0.00028433,18]
[356072213,1741879875502,-546.35,0.00028433,18]
[356072214,1741879875513,-2269.93,0.00028433,18]
[356072215,1741879875523,-548.59178298,0.00028433,18]
[356072216,1741879875533,-813.19,0.00028433,18]
[356072217,1741879875543,-500.0,0.00028433,18]
[356072218,1741879875553,-300.0,0.00028433,18]
[356072219,1741879875564,-500.0,0.00028433,18]
[356072220,1741879875579,-500.0,0.00028433,18]
[356072221,1741879875589,-500.0,0.00028433,18]
[356072222,1741879875600,-500.0,0.00028433,18]
[356072223,1741879875612,-500.0,0.00028433,18]
[356072224,1741879875625,-500.0,0.00028433,18]
[356072225,1741879875636,-500.0,0.00028433,18]
[356072226,1741879875646,-500.0,0.00028433,18]
[356072227,1741879875658,-986.57,0.00028433,18]
[356072228,1741879875669,-533.86012671,0.00028433,18]
[356072229,1741879875680,-500.0,0.00028433,18]
[356072230,1741879875690,-500.0,0.00028433,18]
[356072231,1741879875702,-500.0,0.00028433,18]
[356072232,1741879875714,-748.06,0.00028437,18]
[356072233,1741879875724,-616.89428541,0.00028437,18]
[356072234,1741879875734,-500.0,0.00028437,18]
[356072235,1741879875745,-541.68,0.00028437,18]
[356072236,1741879875755,-720.22,0.00028437,18]
[356072237,1741879875765,-500.0,0.00028437,18]
[356072238,1741879875775,-531.76,0.00028437,18]
[356072239,1741879875786,-500.0,0.00028438,18]
[356072240,1741879875797,-500.0,0.00028438,18]
[356072241,1741879875807,-500.0,0.00028438,18]
[356072242,1741879875818,-500.0,0.00028438,18]
[356072243,1741879875829,-500.0,0.00028438,18]
[356072244,1741879875839,-500.0,0.00028438,18]
[356072245,1741879875850,-204.39562695,0.00028438,18]
[356072246,1741879875860,-500.0,0.00028438,18]
[356072247,1741879875872,-500.0,0.00028438,18]
[356072248,1741879875882,-500.0,0.00028438,18]
[356072249,1741879875893,-500.0,0.00028438,18]
[356072250,1741879875903,-500.0,0.00028438,18]
[356072251,1741879875913,-500.0,0.00028438,18]
[356072252,1741879875923,-500.0,0.00028438,18]
[356072253,1741879875934,-500.0,0.00028438,18]
[356072254,1741879875944,-500.0,0.00028438,18]
[356072255,1741879875954,-500.0,0.00028438,18]
[356072256,1741879875964,-297.82247134,0.00028438,18]
[356072257,1741879875973,-500.0,0.00028438,18]
[356072258,1741879875983,-500.0,0.00028438,18]
[356072259,1741879875994,-500.0,0.00028438,18]
[356072260,1741879876004,-500.0,0.00028438,18]
[356072261,1741879876015,-500.0,0.00028438,18]
[356072262,1741879876025,-500.0,0.00028438,18]
[356072263,1741879876035,-500.0,0.00028438,18]
[356072264,1741879876044,-500.0,0.00028438,18]
[356072265,1741879876055,-500.0,0.00028438,18]
[356072266,1741879876064,-500.0,0.00028438,18]
[356072267,1741879876073,-500.0,0.00028438,18]
[356072268,1741879876082,-500.0,0.00028438,18]
[356072269,1741879876092,-500.0,0.00028438,18]
[356072270,1741879876102,-500.0,0.00028438,18]
[356072271,1741879876112,-626.65,0.00028438,18]
[356072272,1741879876122,-629.74,0.00028438,18]
[356072273,1741879876131,-519.75734631,0.00028438,18]
[356072274,1741879876142,-500.0,0.00028438,18]
[356072275,1741879876153,-570.61,0.00028438,18]
[356072276,1741879876163,-263.44516509,0.00028438,18]
[356072277,1741879876173,-500.0,0.00028438,18]
[356072278,1741879876183,-500.0,0.00028438,18]
[356072279,1741879876192,-500.0,0.00028438,2]
[356072280,1741879876202,-500.0,0.00028438,18]
[356072281,1741879876211,-500.0,0.00028438,18]
[356072282,1741879876221,-889.24,0.00028438,18]
[356072283,1741879876231,-500.0,0.00028438,18]
[356072284,1741879876241,-501.01,0.00028438,18]
[356072285,1741879876250,-413.95472093,0.00028438,18]
[356072286,1741879876259,-500.0,0.00028438,18]
[356072287,1741879876269,-500.0,0.00028438,18]
[356072288,1741879876279,-660.49,0.00028438,18]
[356072289,1741879876289,-500.0,0.00028438,18]
[356072290,1741879876299,-500.0,0.00028438,18]
[356072291,1741879876309,-617.1039112,0.00028438,18]
[356072292,1741879876319,-500.0,0.00028438,18]
[356072293,1741879876328,-500.0,0.00028438,18]
[356072294,1741879876338,-1462.67,0.00028438,18]
[356072295,1741879876347,-551.5,0.00028438,18]
[356072296,1741879876358,-500.0,0.00028438,18]
[356072297,1741879876368,-500.0,0.00028438,18]
[356072298,1741879876378,-542.4,0.00028438,18]
[356072299,1741879876388,-500.0,0.00028438,18]
[356072300,1741879876398,-1228.1,0.00028438,7]
[356072301,1741879876408,-646.73,0.00028438,18]
[356072302,1741879876417,-500.0,0.00028438,18]
[356072303,1741879876427,-500.0,0.00028438,18]
[356072304,1741879876437,-500.0,0.00028438,18]
[356072305,1741879876447,-500.0,0.00028438,18]
[356072306,1741879876456,-886.81,0.00028438,18]
[356072307,1741879876466,-500.0,0.00028438,18]
[356072308,1741879876476,-879.46,0.00028438,18]
[356072309,1741879876485,-979.69,0.00028438,18]
[356072310,1741879876495,-1056.76,0.00028438,18]
[356072311,1741879876505,-698.51,0.00028438,18]
[356072312,1741879876514,-500.0,0.00028438,18]
[356072313,1741879876524,-1607.78,0.00028438,18]
[356072314,1741879876533,-1371.12,0.00028438,18]
[356072315,1741879876543,-507.52,0.00028438,18]
[356072316,1741879876552,-500.0,0.00028438,18]
[356072317,1741879876562,-546.35,0.00028438,18]
[356072318,1741879876574,-2269.93,0.00028438,18]
[356072319,1741879876585,-726.2,0.00028438,18]
[356072320,1741879876594,-500.0,0.00028438,18]
[356072321,1741879876604,-2116.36,0.00028438,18]
[356072322,1741879876615,-813.19,0.00028438,18]
[356072323,1741879876626,-500.0,0.00028438,18]
[356072324,1741879876635,-631.49,0.00028438,18]
[356072325,1741879876645,-500.0,0.00028438,18]
[356072326,1741879876656,-300.0,0.00028438,18]
[356072327,1741879876666,-500.0,0.00028438,18]
[356072328,1741879876676,-500.0,0.00028438,18]
[356072329,1741879876686,-1020.01,0.00028438,18]
[356072330,1741879876695,-1317.74,0.00028438,18]
[356072331,1741879876704,-500.0,0.00028438,18]
[356072332,1741879876714,-1259.12,0.00028438,18]
[356072333,1741879876723,-500.0,0.00028438,18]
[356072334,1741879876733,-525.64,0.00028438,18]
[356072335,1741879876742,-398.66733175,0.00028438,18]
[356072336,1741879876752,-500.0,0.00028438,18]
[356072337,1741879876762,-575.29,0.00028438,18]
[356072338,1741879876771,-500.0,0.00028438,18]
[356072339,1741879876780,-500.0,0.00028438,18]
[356072340,1741879876790,-1176.05,0.00028438,18]
[356072341,1741879876799,-986.57,0.00028438,18]
[356072342,1741879876809,-580.61328467,0.00028438,18]
[356072343,1741879876818,-500.0,0.00028438,18]
[356072344,1741879876828,-500.0,0.00028438,18]
[356072345,1741879876838,-500.0,0.00028438,18]
[356072346,1741879876847,-553.93,0.00028438,18]
[356072347,1741879876857,-500.0,0.00028441,18]
[356072348,1741879876867,-500.0,0.00028441,18]
[356072349,1741879876876,-500.0,0.00028441,18]
[356072350,1741879876886,-500.0,0.00028441,18]
[356072351,1741879876895,-500.0,0.00028441,18]
[356072352,1741879876905,-264.90878866,0.00028441,18]
[356072353,1741879876914,-712.27,0.00028441,18]
[356072354,1741879876924,-500.0,0.00028441,18]
[356072355,1741879876933,-500.0,0.00028441,18]
[356072356,1741879876943,-714.74,0.00028441,18]
[356072357,1741879876952,-212.43429125,0.00028441,18]
[356072358,1741879877128,-418.06061396,0.00028441,18]
[356072359,1741879877149,-500.0,0.00028438,18]
[356072360,1741879877159,-128.68509479,0.00028441,18]
[356072361,1741879877169,-500.0,0.00028441,18]
[356072362,1741879877179,-579.28,0.00028441,18]
[356072363,1741879877190,-891.43,0.00028441,18]
[356072364,1741879877200,-880.59,0.00028441,18]
[356072365,1741879877209,-500.0,0.00028441,18]
[356072366,1741879877219,-628.58,0.00028441,18]
[356072367,1741879877228,-1312.93,0.00028441,18]